bitfinex/quotes_BTCUSD_20251114
["timestamp","ask_amount","ask_price","bid_price","bid_amount"]
[1763105910174,0.20618131,97002.0,97000.0,4.73038254]
[1763105910533,0.20618131,97002.0,97001.0,0.002]
[1763105910936,0.20618131,97002.0,97001.0,0.1006426]
[1763105911145,0.20617485,97006.0,97001.0,0.1006426]
[1763105911339,0.20617769,97004.0,97001.0,0.1006426]
[1763105911561,0.20617451,97006.0,97001.0,0.1006426]
[1763105911767,0.26565751,97020.0,97001.0,0.1006426]
[1763105911768,0.20618131,97002.0,97001.0,0.1006426]
[1763105912167,0.20618131,97002.0,97001.0,0.1169226]
[1763105912564,0.20616801,97009.0,97001.0,0.1465426]
[1763105912819,0.20618131,97002.0,97001.0,0.1169226]
[1763105913026,0.20618131,97002.0,97001.0,0.1179226]
[1763105913191,0.20617984,97003.0,97001.0,0.01728]
[1763105913396,0.20618344,97001.0,97000.0,4.72938254]
[1763105913646,0.2061772,97004.0,97001.0,0.03062]
[1763105913847,0.2061772,97004.0,97003.0,0.1006426]
[1763105914587,0.20617068,97007.0,97003.0,0.1006426]
[1763105914786,0.20617285,97006.0,97003.0,0.1006426]
[1763105914990,0.20617285,97006.0,97003.0,0.1302626]
[1763105915410,0.20617285,97006.0,97003.0,0.1312626]
[1763105915611,0.20617285,97006.0,97003.0,0.001]
[1763105915834,0.20617706,97004.0,97003.0,0.001]
[1763105916701,0.20618344,97001.0,97000.0,4.72938254]
[1763105918485,0.20618344,97001.0,97000.0,4.73138254]
[1763105919111,0.20617435,97010.0,97000.0,4.73138254]
[1763105919112,0.20613244,97025.0,97009.0,0.02098]
[1763105919309,0.02030608,97030.0,97009.0,0.02098]
[1763105919310,0.20616001,97013.0,97009.0,0.02098]
[1763105919510,0.2759636,97030.0,97000.0,4.73138254]
[1763105919511,0.20614943,97017.0,97000.0,4.73138254]
[1763105919747,0.20618344,97001.0,97000.0,4.73238254]
[1763105919948,0.20618344,97001.0,97000.0,4.72938254]
[1763105920524,0.04341874,97028.0,97000.0,4.72938254]
[1763105920724,0.26565751,97020.0,97004.0,0.1006426]
[1763105920925,0.20617206,97007.0,97001.0,0.1302626]
[1763105921175,0.20618131,97002.0,97001.0,0.1006426]
[1763105921367,0.20618131,97002.0,97000.0,4.73138254]
[1763105921598,0.20618131,97002.0,97000.0,4.72938254]
[1763105922042,0.20618131,97002.0,97001.0,0.1006426]
[1763105922174,0.26565751,97020.0,97001.0,0.1006426]
[1763105922375,0.47180269,97020.0,97001.0,0.1006426]
[1763105922579,0.26565751,97020.0,97007.0,0.20616951]
[1763105922890,0.02656575,97019.0,97005.0,0.20617483]
[1763105923087,0.20615801,97013.0,97004.0,0.20617706]
[1763105923286,0.20618344,97001.0,97000.0,4.72938254]
[1763105923656,0.04341874,97018.0,97000.0,4.72938254]
[1763105923807,0.20618222,97002.0,97001.0,0.001]
[1763105924008,0.24376804,97002.0,97001.0,0.001]
[1763105924214,0.20618222,97002.0,97001.0,0.001]
[1763105925021,0.20618222,97002.0,97000.0,4.72938254]
[1763105925356,0.002,97001.0,97000.0,4.72938254]
[1763105925556,0.20618222,97002.0,97000.0,4.72938254]
[1763105925760,0.30682482,97002.0,97000.0,4.72938254]
[1763105925885,0.05130057,97001.0,97000.0,4.72938254]
[1763105926517,0.05130057,97001.0,97000.0,4.73038254]
[1763105926914,0.05130057,97001.0,97000.0,4.73138254]
[1763105927336,0.05130057,97001.0,97000.0,4.73038254]
[1763105927690,0.04630057,97001.0,97000.0,4.73038254]
[1763105927918,0.20618222,97002.0,97000.0,4.73238254]
[1763105928202,0.20618222,97002.0,97000.0,4.73138254]
[1763105928430,0.04341874,97001.0,97000.0,4.73238254]
[1763105928616,0.20618222,97002.0,97000.0,4.73238254]
[1763105928953,0.20618222,97002.0,97000.0,4.73038254]
[1763105930006,0.20618222,97002.0,97000.0,4.73138254]
[1763105934315,0.04341874,97001.0,97000.0,4.73138254]
[1763105934713,0.36641874,97001.0,97000.0,4.73138254]
[1763105935281,0.36641874,97001.0,97000.0,4.73038254]
[1763105935913,0.36741874,97001.0,97000.0,4.73038254]
[1763105936225,0.36741874,97001.0,97000.0,4.72938254]
[1763105938769,1.49312074,97001.0,97000.0,4.6844765]
[1763105938967,1.20840968,97001.0,97000.0,4.65350949]
[1763105939238,1.26483106,97001.0,97000.0,4.62254248]
[1763105939461,1.14899706,97001.0,97000.0,4.62254248]
[1763105939822,1.03043806,97001.0,97000.0,4.59157246]
[1763105940031,0.60741751,97001.0,97000.0,4.59157246]
[1763105940275,0.60641751,97001.0,97000.0,4.59157246]
[1763105940430,0.44213551,97001.0,97000.0,4.59157246]
[1763105940649,0.44413551,97001.0,97000.0,4.59157246]
[1763105940852,0.57658351,97001.0,97000.0,4.59157246]
[1763105941259,0.57758351,97001.0,97000.0,4.59157246]
[1763105941660,0.57658351,97001.0,97000.0,4.59157246]
[1763105941868,0.57558351,97001.0,97000.0,4.59157246]
[1763105942070,0.57658351,97001.0,97000.0,4.59157246]
[1763105942272,0.57558351,97001.0,97000.0,4.59157246]
[1763105942693,0.59779748,97001.0,97000.0,4.59157246]
[1763105943070,0.59879748,97001.0,97000.0,4.50093855]
[1763105943422,0.6180778,97001.0,97000.0,4.18187879]
[1763105943619,0.59686481,97001.0,97000.0,4.18187879]
[1763105943761,0.82108351,97001.0,97000.0,4.18187879]
[1763105943962,0.86157753,97001.0,97000.0,4.18187879]
[1763105944350,0.86257753,97001.0,97000.0,4.18187879]
[1763105944559,0.86157753,97001.0,97000.0,4.18187879]
[1763105944966,0.36563551,97001.0,97000.0,4.18187879]
[1763105945173,0.49023551,97001.0,97000.0,4.18187879]
[1763105945593,0.81123551,97001.0,97000.0,4.18187879]
[1763105946029,0.86011608,97001.0,97000.0,4.18187879]
[1763105946202,0.86011608,97001.0,97000.0,4.08641768]
[1763105946538,0.85811608,97001.0,97000.0,4.0554416]
[1763105946775,0.85711608,97001.0,97000.0,4.02446552]
[1763105946953,0.85811608,97001.0,97000.0,4.02446552]
[1763105947389,0.85711608,97001.0,97000.0,4.02446552]
[1763105947607,0.85911608,97001.0,97000.0,4.02446552]
[1763105947797,0.81762242,97001.0,97000.0,4.02446552]
[1763105948221,0.86774354,97001.0,97000.0,4.02446552]
[1763105948444,0.86974354,97001.0,97000.0,4.02446552]
[1763105948833,0.89752596,97001.0,97000.0,4.02446552]
[1763105949035,0.86974354,97001.0,97000.0,4.02446552]
[1763105949853,0.86974354,97001.0,97000.0,3.85715237]
[1763105950057,0.86974354,97001.0,97000.0,3.54944312]
[1763105950058,0.62524354,97001.0,97000.0,3.54944312]
[1763105950258,0.62524354,97001.0,97000.0,3.46408625]
[1763105950443,0.62524354,97001.0,97000.0,3.45226702]
[1763105950642,0.62524354,97001.0,97000.0,3.41578298]
[1763105951903,0.62524354,97001.0,97000.0,2.4099035]
[1763105952133,0.62524354,97001.0,96950.0,0.0004]
[1763105952134,2.57270851,96951.0,96950.0,0.0004]
[1763105952347,2.57270851,96951.0,96900.0,0.0004]
[1763105952348,0.20639621,96901.0,96900.0,0.0004]
[1763105952557,0.20639621,96901.0,96900.0,0.00085029]
[1763105953231,0.21651039,96901.0,96900.0,0.00085029]
[1763105953434,0.58292913,96901.0,96900.0,0.00085029]
[1763105954381,1.10030013,96901.0,96900.0,0.00085029]
[1763105955016,1.10030013,96901.0,96845.0,0.00489655]
[1763105955017,0.83100852,96889.0,96845.0,0.00489655]
[1763105955238,0.83145818,96889.0,96888.0,0.07469009]
[1763105955473,0.83145818,96889.0,96888.0,0.04369836]
[1763105955682,0.95907371,96889.0,96888.0,0.01270663]
[1763105955898,0.84103309,96877.0,96845.0,0.00489655]
[1763105956111,0.6016592,96877.0,96845.0,0.00489655]
[1763105957411,0.6026592,96877.0,96845.0,0.00489655]
[1763105957623,0.8970762,96877.0,96845.0,0.00489655]
[1763105957833,0.7854592,96877.0,96845.0,0.00489655]
[1763105958044,0.6026592,96877.0,96876.0,0.00335714]
[1763105958509,1.0179042,96877.0,96876.0,0.00335714]
[1763105958739,0.6026592,96877.0,96876.0,0.00335714]
[1763105958966,0.21704505,96877.0,96876.0,0.00335714]
[1763105959804,0.21604505,96877.0,96876.0,0.00335714]
[1763105960238,0.0095977,96877.0,96876.0,0.00335714]
[1763105960387,0.20644735,96877.0,96876.0,0.00335714]
[1763105961384,0.00044966,96889.0,96876.0,0.00435714]
[1763105961637,0.00952661,96888.0,96877.0,0.03328]
[1763105961766,0.00044966,96889.0,96888.0,0.0222]
[1763105961963,0.00044966,96889.0,96876.0,9e-05]
[1763105961964,0.00044966,96889.0,96878.0,0.01548]
[1763105962206,0.00044966,96889.0,96888.0,0.0222]
[1763105962387,0.20687144,96889.0,96888.0,0.0222]
[1763105962728,0.00044966,96889.0,96888.0,0.0222]
[1763105962936,0.00144966,96889.0,96888.0,0.0222]
[1763105963143,0.00144966,96889.0,96888.0,0.20642391]
[1763105963814,0.01031459,96950.0,96914.0,0.20636773]
[1763105964024,0.20631967,96938.0,96929.0,0.01548]
[1763105964235,0.01031565,96940.0,96915.0,0.03328]
[1763105964236,0.20636197,96918.0,96915.0,0.1339226]
[1763105964451,0.00952247,96917.0,96915.0,0.1339226]
[1763105964684,0.20635806,96919.0,96915.0,0.1006426]
[1763105964890,0.2158852,96918.0,96915.0,0.1006426]
[1763105965104,0.20632126,96937.0,96924.0,0.0222]
[1763105965308,0.02857978,96936.0,96932.0,0.1006426]
[1763105965516,0.00952659,96935.0,96932.0,0.1006426]
[1763105965782,0.20631988,96937.0,96929.0,0.001]
[1763105965783,0.21585254,96934.0,96929.0,0.001]
[1763105965999,0.2063505,96923.0,96914.0,0.00013619]
[1763105966202,0.20636358,96917.0,96914.0,0.00013619]
[1763105967049,0.20636427,96916.0,96915.0,0.1006426]
[1763105967262,0.20636214,96917.0,96914.0,0.00013619]
[1763105967671,0.20836214,96917.0,96914.0,0.00013619]
[1763105967887,0.20836214,96917.0,96915.0,0.00222183]
[1763105968089,0.57278514,96915.0,96914.0,0.00113619]
[1763105968430,0.57278514,96915.0,96914.0,0.00013619]
[1763105968845,0.57278514,96915.0,96914.0,0.00213619]
[1763105969245,0.57278514,96915.0,96914.0,0.00013619]
[1763105969669,0.2063664,96915.0,96914.0,0.00013619]
[1763105970584,0.24978514,96915.0,96914.0,0.00013619]
[1763105970726,0.24978514,96915.0,96914.0,0.00113619]
[1763105971165,0.24978514,96915.0,96914.0,0.00013619]
[1763105971866,0.24978514,96915.0,96863.0,0.05166]
[1763105971867,0.24978514,96915.0,96845.0,0.00489655]
[1763105971868,0.20646653,96868.0,96845.0,0.00489655]
[1763105972099,0.20646653,96868.0,96867.0,0.00284966]
[1763105972100,0.24988527,96868.0,96867.0,0.00284966]
[1763105972309,0.20646653,96868.0,96867.0,0.00284966]
[1763105973656,0.52946653,96868.0,96867.0,0.00284966]
[1763105973882,0.5390274,96868.0,96867.0,0.00284966]
[1763105974032,0.5390274,96868.0,96867.0,0.00735814]
[1763105974406,0.58244614,96868.0,96867.0,0.00735814]
[1763105974615,0.5390274,96868.0,96867.0,0.00635814]
[1763105974840,0.5390274,96868.0,96867.0,0.00735814]
[1763105975034,0.2160274,96868.0,96867.0,0.00735814]
[1763105975493,0.2160274,96868.0,96867.0,0.00635814]
[1763105975906,0.2160274,96868.0,96867.0,0.00735814]
[1763105976109,0.20646653,96868.0,96867.0,0.00735814]
[1763105976923,0.20646653,96868.0,96867.0,0.00635814]
[1763105977349,0.20646653,96868.0,96867.0,0.00835814]
[1763105977954,0.20645239,96875.0,96868.0,0.05166]
[1763105977955,0.20645349,96875.0,96868.0,0.05166]
[1763105978210,0.20645349,96875.0,96874.0,0.1006426]
[1763105978477,0.20646226,96870.0,96867.0,0.00484966]
[1763105978912,0.20646226,96870.0,96867.0,0.00284966]
[1763105979134,0.20646226,96870.0,96868.0,0.1006426]
[1763105980086,0.20646013,96871.0,96868.0,0.1006426]
[1763105980247,0.2064644,96869.0,96868.0,0.1006426]
[1763105980653,0.002,96870.0,96868.0,0.1006426]
[1763105980858,0.002,96870.0,96867.0,0.00284966]
[1763105980859,0.002,96870.0,96869.0,0.1006426]
[1763105981592,0.20646097,96871.0,96869.0,0.1006426]
[1763105981758,0.20646653,96868.0,96867.0,0.00284966]
[1763105982515,0.01031778,96920.0,96876.0,0.03256]
[1763105982717,0.01031778,96920.0,96870.0,0.01032311]
[1763105982718,0.20638556,96906.0,96905.0,0.02364]
[1763105982911,0.02882599,96906.0,96880.0,0.39066129]
[1763105983150,0.20640966,96895.0,96890.0,0.02364]
[1763105983364,0.20639295,96903.0,96890.0,0.02364]
[1763105983584,0.20639295,96903.0,96902.0,0.1006426]
[1763105983812,0.20638896,96906.0,96902.0,0.1332026]
[1763105984033,0.20638896,96906.0,96902.0,0.13333886]
[1763105984243,0.20638097,96909.0,96903.0,0.0753]
[1763105984625,0.20638097,96909.0,96904.0,0.05166]
[1763105984828,0.20637308,96912.0,96904.0,0.05166]
[1763105984966,0.002,96906.0,96904.0,0.05166]
[1763105985169,0.20638491,96907.0,96905.0,0.1006426]
[1763105985426,0.20638982,96904.0,96903.0,0.02364]
[1763105985600,0.002,96909.0,96906.0,0.1006426]
[1763105985798,0.2073805,96909.0,96906.0,0.1006426]
[1763105986969,0.2083805,96909.0,96906.0,0.1006426]
[1763105987805,0.2083805,96909.0,96903.0,0.02364]
[1763105987806,0.20638982,96904.0,96903.0,0.02364]
[1763105989011,0.20838982,96904.0,96903.0,0.02364]
[1763105989632,0.002,96904.0,96903.0,0.02364]
[1763105989748,0.002,96904.0,96903.0,0.04665706]
[1763105989959,0.003,96904.0,96903.0,0.04665706]
[1763105990167,0.003,96904.0,96903.0,0.36965706]
[1763105990576,0.002,96904.0,96903.0,0.83236006]
[1763105990990,0.002,96904.0,96903.0,0.8757788]
[1763105991391,0.002,96904.0,96903.0,0.9996988]
[1763105991601,0.2063031,96945.0,96934.0,0.20632423]
[1763105991805,0.20627601,96958.0,96944.0,0.1006426]
[1763105992018,0.02882089,96957.0,96944.0,0.1006426]
[1763105992219,0.20627601,96958.0,96957.0,0.03256]
[1763105992416,0.02881129,96958.0,96957.0,0.03256]
[1763105992686,0.01920753,96958.0,96957.0,0.03256]
[1763105992854,0.01920753,96958.0,96957.0,0.03269626]
[1763105993239,0.01920753,96958.0,96957.0,0.00013626]
[1763105993435,0.01920753,96958.0,96957.0,0.02314231]
[1763105993646,0.01920753,96958.0,96957.0,0.00013626]
[1763105994194,0.01920753,96958.0,96957.0,0.00213626]
[1763105994404,0.20626068,96965.0,96957.0,0.00213626]
[1763105994620,0.20625568,96968.0,96957.0,0.00213626]
[1763105994621,0.20625568,96968.0,96966.0,0.03256]
[1763105994823,0.20624882,96971.0,96967.0,0.03256]
[1763105994982,0.20624882,96971.0,96965.0,0.05166]
[1763105995185,0.20623659,96976.0,96973.0,0.03256]
[1763105995605,0.20623659,96976.0,96974.0,0.02364]
[1763105996412,0.20625786,96966.0,96960.0,0.1006426]
[1763105996625,0.20626849,96961.0,96960.0,0.1006426]
[1763105996834,0.01051034,96990.0,96960.0,0.1006426]
[1763105996835,0.20626507,96963.0,96960.0,0.1006426]
[1763105997059,0.20624722,96971.0,96969.0,0.0562]
[1763105997803,0.002,96976.0,96970.0,0.05166]
[1763105998027,0.2062387,96976.0,96970.0,0.05166]
[1763105998251,0.2062387,96976.0,96969.0,0.02364]
[1763105998252,0.20624722,96971.0,96969.0,0.02364]
[1763105998891,0.20824722,96971.0,96969.0,0.02364]
[1763105999358,0.002,96971.0,96970.0,0.05166]
[1763106000425,0.002,96971.0,96970.0,0.05240911]
[1763106000842,0.003,96971.0,96970.0,0.05240911]
[1763106001049,0.001,96971.0,96970.0,0.05240911]
[1763106001277,0.003,96971.0,96970.0,0.00074911]
[1763106001489,0.002,96971.0,96970.0,0.00074911]
[1763106001702,0.20624444,96973.0,96970.0,0.00074911]
[1763106001903,0.20627488,96958.0,96941.0,0.02302]
[1763106002749,0.20627488,96958.0,96936.0,0.1006426]
[1763106002981,0.20627488,96958.0,96919.0,0.02302]
[1763106003196,0.57269362,96958.0,96919.0,0.02302]
[1763106003600,0.57269362,96958.0,96957.0,0.00213626]
[1763106003866,0.24969362,96958.0,96957.0,0.00213626]
[1763106004056,0.24969362,96958.0,96957.0,0.00013626]
[1763106004264,0.25169362,96958.0,96957.0,0.00013626]
[1763106004461,0.25169362,96958.0,96957.0,0.00113626]
[1763106004666,0.24969362,96958.0,96957.0,0.00113626]
[1763106004881,0.20627488,96958.0,96957.0,0.00113626]
[1763106005236,0.0103114,96980.0,96958.0,0.02302]
[1763106005437,0.20626134,96965.0,96961.0,0.1006426]
[1763106005649,0.20623234,96978.0,96961.0,0.1006426]
[1763106005980,0.20623021,96979.0,96976.0,0.1006426]
[1763106006196,0.0002,96990.0,96979.0,0.02302]
[1763106006375,0.20621668,96986.0,96979.0,0.02302]
[1763106006575,0.0002,96990.0,96979.0,0.02302]
[1763106006576,0.0002,96990.0,96980.0,0.04538]
[1763106006728,0.20622342,96983.0,96980.0,0.04538]
[1763106006930,0.0002,96990.0,96989.0,0.03261]
[1763106007766,0.0002,96990.0,96984.0,0.20621958]
[1763106007941,0.0002,96990.0,96989.0,0.03225]
[1763106008142,0.00265001,96990.0,96989.0,0.23845895]
[1763106008363,0.00265001,96990.0,96989.0,0.20620895]
[1763106009190,0.00265001,96990.0,96989.0,0.57262769]
[1763106009191,0.00165001,96990.0,96989.0,0.57262769]
[1763106009369,0.00065001,96990.0,96989.0,0.52920895]
[1763106009779,0.00065001,96990.0,96989.0,0.323]
[1763106010584,0.00065001,96990.0,96989.0,0.324]
[1763106010997,0.00165001,96990.0,96989.0,0.324]
[1763106011223,0.00065001,96990.0,96989.0,0.324]
[1763106012670,0.20685683,96990.0,96989.0,0.001]
[1763106013324,0.20685683,96990.0,96989.0,0.00124074]
[1763106013532,0.20685683,96990.0,96989.0,0.00024074]
[1763106013992,0.25027557,96990.0,96989.0,0.00024074]
[1763106014913,0.57427557,96990.0,96989.0,0.00024074]
[1763106015138,0.57327557,96990.0,96989.0,0.00024074]
[1763106015359,0.92534457,96990.0,96989.0,0.00024074]
[1763106015595,0.20633659,96929.0,96928.0,0.02252]
[1763106016472,0.20633659,96929.0,96922.0,0.02252]
[1763106016677,0.0274954,97013.0,96906.0,0.02252]
[1763106016678,0.27635927,96940.0,96906.0,0.02252]
[1763106016883,0.27635927,96940.0,96906.0,0.02265626]
[1763106016884,0.20637547,96911.0,96906.0,0.02265626]
[1763106017087,0.20637734,96910.0,96906.0,0.02265626]
[1763106017287,0.01031672,96930.0,96906.0,0.22904066]
[1763106017288,0.20635572,96921.0,96906.0,0.22904066]
[1763106017513,0.001,96929.0,96906.0,0.02265626]
[1763106017514,0.20638343,96907.0,96906.0,0.02265626]
[1763106017713,0.001,96929.0,96906.0,0.02265626]
[1763106017714,0.002,96929.0,96906.0,0.02265626]
[1763106017932,0.20636001,96918.0,96917.0,0.1006426]
[1763106018352,0.001,96910.0,96906.0,0.02265626]
[1763106018581,0.20637851,96910.0,96906.0,0.02265626]
[1763106018795,0.20638251,96908.0,96906.0,0.02265626]
[1763106018986,0.20637134,96913.0,96906.0,0.02265626]
[1763106019188,0.18368281,97066.0,96920.0,0.1006426]
[1763106019189,0.2063505,96924.0,96920.0,0.1006426]
[1763106019394,0.20635136,96923.0,96920.0,0.1006426]
[1763106020344,0.21663096,96940.0,96921.0,0.1006426]
[1763106020545,0.01031565,96940.0,96921.0,0.30699426]
[1763106020756,0.01031565,96940.0,96922.0,0.0461]
[1763106021151,0.20633666,96929.0,96922.0,0.0461]
[1763106021359,0.20634202,96927.0,96922.0,0.0461]
[1763106021817,0.20633317,96931.0,96922.0,0.0461]
[1763106022055,0.20633317,96931.0,96923.0,0.20634937]
[1763106022261,0.20631202,96941.0,96931.0,0.02252]
[1763106022563,0.20631921,96938.0,96931.0,0.02252]
[1763106022772,0.01031459,96950.0,96918.0,0.02252]
[1763106022773,0.20635788,96919.0,96918.0,0.02252]
[1763106023069,0.01031565,96940.0,96929.0,0.1006426]
[1763106023270,0.01031459,96950.0,96939.0,0.03225]
[1763106023607,0.20630115,96946.0,96944.0,0.1006426]
[1763106023849,0.01031246,96970.0,96949.0,0.03225]
[1763106024160,0.01031246,96970.0,96944.0,0.1006426]
[1763106024161,0.01051034,96990.0,96959.0,0.1006426]
[1763106024162,0.20627062,96960.0,96959.0,0.1006426]
[1763106024361,0.20624728,96971.0,96959.0,0.1006426]
[1763106024569,5.102e-05,96960.0,96959.0,0.1006426]
[1763106025331,5.102e-05,96960.0,96959.0,0.15196197]
[1763106025534,5.102e-05,96960.0,96959.0,0.1006426]
[1763106025923,5.102e-05,96960.0,96959.0,0.4236426]
[1763106026115,0.00105102,96960.0,96959.0,0.4236426]
[1763106026737,0.00105102,96960.0,96959.0,0.69852934]
[1763106026738,5.102e-05,96960.0,96959.0,0.69852934]
[1763106029156,5.102e-05,96960.0,96959.0,0.69952934]
[1763106029364,5.102e-05,96960.0,96959.0,0.80319872]
[1763106029579,0.20609069,97045.0,97000.0,0.00999999]
[1763106029783,0.2349279,97044.0,97033.0,0.1006426]
[1763106029985,0.2349279,97044.0,97034.0,0.02252]
[1763106029986,0.02883582,97043.0,97034.0,0.02252]
[1763106030118,0.00045611,97045.0,97039.0,0.20610187]
[1763106030119,0.01922388,97042.0,97039.0,0.20610187]
[1763106030320,0.00045611,97045.0,97039.0,0.20610187]
[1763106030321,0.00045611,97045.0,97039.0,0.25963846]
[1763106030322,0.01922388,97041.0,97039.0,0.25963846]
[1763106030517,0.00045611,97045.0,97040.0,0.04515]
[1763106030749,0.00045611,97045.0,97042.0,0.20609498]
[1763106031301,0.00045611,97045.0,97044.0,0.20609208]
[1763106031748,0.00045611,97045.0,97043.0,0.04515]
[1763106031749,0.00045611,97045.0,97031.0,0.323]
[1763106031962,0.00045611,97045.0,97044.0,0.0309]
[1763106032184,0.00045611,97045.0,97044.0,0.07605]
[1763106032391,0.00045611,97045.0,97044.0,0.04515]
[1763106032611,0.00245611,97045.0,97043.0,0.3067353]
[1763106033176,0.00145611,97045.0,97043.0,0.1006426]
[1763106033380,0.00345611,97045.0,97044.0,0.04515]
[1763106033590,0.00045611,97045.0,97043.0,0.1006426]
[1763106033816,0.00045611,97045.0,97043.0,0.3067351]
[1763106033996,0.00245611,97045.0,97044.0,0.04515]
[1763106034689,0.00145611,97045.0,97044.0,0.04515]
[1763106035116,0.20609208,97044.0,97043.0,0.1006426]
[1763106035339,0.00145611,97045.0,97044.0,0.20609208]
[1763106035561,0.00145611,97045.0,97043.0,0.1006426]
[1763106036005,0.00145611,97045.0,97044.0,0.02264]
[1763106036423,0.00145611,97045.0,97044.0,0.22873208]
[1763106036639,0.00145611,97045.0,97044.0,0.02264]
[1763106036828,0.00045611,97045.0,97044.0,0.02264]
[1763106037028,0.00145611,97045.0,97044.0,0.02264]
[1763106037168,0.00245611,97045.0,97044.0,0.02264]
[1763106037367,0.00145611,97045.0,97044.0,0.0761878]
[1763106037772,0.00245611,97045.0,97044.0,0.3991878]
[1763106038238,0.00145611,97045.0,97044.0,0.3991878]
[1763106038362,0.00145611,97045.0,97044.0,0.34564]
[1763106038558,0.00245611,97045.0,97044.0,0.34564]
[1763106039051,0.00045611,97045.0,97044.0,0.34564]
[1763106039253,0.00145611,97045.0,97044.0,0.496045]
[1763106039452,0.00145611,97045.0,97044.0,0.70626012]
[1763106039684,0.0002,97060.0,97053.0,0.323]
[1763106039890,0.21647278,97100.0,97053.0,0.323]
[1763106039891,0.0002,97100.0,97081.0,0.20601353]
[1763106040065,0.0002,97100.0,97060.0,0.34330289]
[1763106040066,0.23468195,97099.0,97091.0,0.1006426]
[1763106040276,0.20598619,97094.0,97091.0,0.1006426]
[1763106040473,0.20603185,97074.0,97070.0,0.323]
[1763106040688,0.01029972,97090.0,97062.0,0.02264]
[1763106040689,0.20599655,97089.0,97062.0,0.02264]
[1763106040895,0.01912924,97088.0,97080.0,0.1006426]
[1763106041096,0.0002,97100.0,97081.0,0.20601353]
[1763106041275,0.20599172,97092.0,97089.0,0.0309]
[1763106041474,0.0002,97100.0,97095.0,0.1006426]
[1763106041722,0.20597534,97099.0,97095.0,0.1006426]
[1763106041881,0.2061738,97100.0,97095.0,0.1006426]
[1763106042084,0.20598023,97097.0,97095.0,0.1006426]
[1763106042986,0.2061738,97100.0,97095.0,0.1026426]
[1763106043189,0.0022,97100.0,97098.0,0.20597709]
[1763106043406,0.0022,97100.0,97099.0,0.1006426]
[1763106043407,0.0002,97100.0,97099.0,0.1006426]
[1763106043623,0.0002,97100.0,97095.0,0.002]
[1763106043624,0.2059817,97096.0,97095.0,0.002]
[1763106044459,0.20617322,97100.0,97080.0,0.00013626]
[1763106044460,0.20601353,97081.0,97080.0,0.00013626]
[1763106045303,0.2059995,97089.0,97080.0,0.00013626]
[1763106045506,0.20600996,97083.0,97080.0,0.00013626]
[1763106045683,0.001,97081.0,97080.0,0.00013626]
[1763106046095,0.20600996,97083.0,97080.0,0.00013626]
[1763106046491,0.20600996,97083.0,97080.0,0.00313626]
[1763106046698,0.20600996,97083.0,97080.0,0.00213626]
[1763106047166,0.20600996,97083.0,97080.0,0.00413626]
[1763106048290,0.20600996,97083.0,97080.0,0.00013626]
[1763106048508,0.20600996,97083.0,97080.0,0.00213626]
[1763106049173,0.20600996,97083.0,97080.0,0.00413626]
[1763106049373,0.20600996,97083.0,97080.0,0.00213626]
[1763106049906,0.20600996,97083.0,97080.0,0.00413626]
[1763106050084,0.20600996,97083.0,97080.0,0.00213626]
[1763106050291,0.20601072,97085.0,97081.0,0.1006426]
[1763106050581,0.20601141,97082.0,97080.0,0.00413626]
[1763106051039,0.20601141,97082.0,97081.0,0.1006426]
[1763106051656,0.20600716,97084.0,97081.0,0.1006426]
[1763106051657,0.0002,97100.0,97081.0,0.1006426]
[1763106051870,0.2060081,97084.0,97081.0,0.002]
[1763106052072,0.20601353,97081.0,97080.0,0.00013626]
[1763106052293,0.20601353,97081.0,97080.0,0.00213626]
[1763106052500,0.52901353,97081.0,97080.0,0.00213626]
[1763106052711,0.52901353,97081.0,97080.0,0.00013626]
[1763106052911,0.20601353,97081.0,97080.0,0.00013626]
[1763106053860,0.20601353,97081.0,97080.0,0.00213626]
[1763106054155,0.323,97095.0,97080.0,0.00213626]
[1763106054156,0.0002,97100.0,97080.0,0.00213626]
[1763106054332,0.20600469,97086.0,97081.0,0.1006426]
[1763106054559,0.20599132,97092.0,97081.0,0.1006426]
[1763106054815,0.0002,97100.0,97081.0,0.1006426]
[1763106055027,0.0002,97100.0,97082.0,0.02264]
[1763106055222,0.20600929,97083.0,97082.0,0.02264]
[1763106056211,0.20601353,97081.0,97080.0,0.00013626]
[1763106058402,0.20601353,97081.0,97080.0,0.00313626]
[1763106058801,0.52901353,97081.0,97080.0,0.00213626]
[1763106059005,0.52901353,97081.0,97080.0,0.00113626]
[1763106059242,0.54826462,97081.0,97080.0,0.00113626]
[1763106060248,0.54826462,97081.0,97080.0,0.00313626]
[1763106060810,0.52901353,97081.0,97080.0,0.00213626]
[1763106061008,0.54827004,97081.0,97080.0,0.00213626]
[1763106061212,0.54827004,97081.0,97080.0,0.00313626]
[1763106061422,0.54827004,97081.0,97080.0,0.00113626]
[1763106061618,0.54827004,97081.0,97080.0,0.00213626]
[1763106062076,0.59168878,97081.0,97080.0,0.00213626]
[1763106062257,0.59168878,97081.0,97034.0,0.02252]
[1763106062258,0.20611119,97035.0,97034.0,0.02252]
[1763106062418,0.0103029,97060.0,97034.0,0.02297611]
[1763106062619,0.20611119,97035.0,97034.0,0.02297611]
[1763106063429,0.20711119,97035.0,97034.0,0.02297611]
[1763106063870,0.001,97035.0,97034.0,0.02297611]
[1763106064525,0.20610855,97037.0,97034.0,0.02297611]
[1763106064733,0.20611119,97035.0,97034.0,0.02297611]
[1763106064973,0.21011119,97035.0,97034.0,0.02297611]
[1763106065384,0.20811119,97035.0,97034.0,0.02297611]
[1763106065556,0.002,97035.0,97034.0,0.02297611]
[1763106066415,0.002,97035.0,97034.0,0.00045611]
[1763106066622,0.002,97035.0,96999.0,0.1747243]
[1763106066623,0.20619883,96994.0,96991.0,0.01987]
[1763106066763,0.00045563,96994.0,96991.0,0.01987]
[1763106067197,0.20620044,96993.0,96991.0,0.01987]
[1763106067401,0.00045563,96994.0,96980.0,0.00024077]
[1763106067402,0.20621745,96985.0,96984.0,0.01968]
[1763106067616,0.20621092,96989.0,96984.0,0.01968]
[1763106067829,0.20621433,96987.0,96984.0,0.01968]
[1763106068473,0.2062054,96991.0,96984.0,0.01968]
[1763106068617,0.001,96985.0,96984.0,0.01968]
[1763106069010,0.001,96987.0,96984.0,0.01968]
[1763106069419,0.20621303,96988.0,96984.0,0.01968]
[1763106069849,0.00045563,96994.0,96993.0,0.02853]
[1763106070350,0.001,96987.0,96985.0,0.03921]
[1763106070586,0.20621533,96986.0,96984.0,0.01968]
[1763106070829,0.001,96985.0,96984.0,0.01968]
[1763106071274,0.20621533,96986.0,96984.0,0.01968]
[1763106071497,0.001,96988.0,96984.0,0.01968]
[1763106071722,0.001,96987.0,96986.0,0.20621533]
[1763106071983,0.001,96987.0,96985.0,0.03921]
[1763106072692,0.20621533,96986.0,96984.0,0.01968]
[1763106074113,0.20721533,96986.0,96984.0,0.01968]